fUSD/lending_fUSD_20240119
["ID","MTS","AMOUNT","RATE_DAILY","PERIOD"]
[312159552,1705673602393,150.0,0.000185,2]
[312159553,1705673602415,150.0,0.000185,2]
[312159554,1705673602436,11.85,0.000185,2]
[312159555,1705673685024,151.0,0.00029674,120]
[312159557,1705674030956,400.84,0.00017943,2]
[312159558,1705674099114,-1136.8526006,0.00018698,2]
[312159559,1705674099140,-5444.8024805,0.00018698,2]
[312159560,1705674099166,-501.56698146,0.00018698,2]
[312159561,1705674099192,-4637.39693424,0.00018699,2]
[312159562,1705674099219,-263.47827653,0.00018699,2]
[312159563,1705674099244,-940.81377552,0.000187,2]
[312159564,1705674099270,-4627.51656199,0.000187,2]
[312159565,1705674099298,-473.3794794,0.000187,2]
[312159566,1705674099322,-155.0,0.000187,2]
[312159567,1705674099347,-155.0,0.000187,2]
[312159568,1705674099372,-155.0,0.00018701,2]
[312159569,1705674099396,-376.99778684,0.00018701,2]
[312159570,1705674099421,-2138.2517129,0.00018701,2]
[312159571,1705674099445,-2146.10378163,0.00018701,2]
[312159572,1705674099470,-242.54662621,0.00018702,2]
[312159573,1705674099495,-5216.51031341,0.00018702,2]
[312159574,1705674099520,-2947.80727048,0.00018702,2]
[312159575,1705674099546,-3045.18818875,0.00018702,2]
[312159576,1705674099573,-295.57218502,0.00018702,2]
[312159577,1705674099598,-1768.48202506,0.00018702,2]
[312159578,1705674099623,-529.4525859,0.00018703,2]
[312159579,1705674099649,-2307.45900825,0.00018703,2]
[312159580,1705674099675,-150.0,0.00018703,2]
[312159581,1705674099701,-155.0,0.00018703,2]
[312159582,1705674099726,-289.03050661,0.00018703,2]
[312159583,1705674099752,-558.94195926,0.00018703,2]
[312159584,1705674099778,-364.16757287,0.00018703,2]
[312159585,1705674099803,-2139.90801857,0.00018704,2]
[312159586,1705674099828,-4273.6526089,0.00018704,2]
[312159587,1705674099853,-310.26117175,0.00018705,2]
[312159588,1705674099878,-314.36106493,0.00018705,2]
[312159589,1705674099903,-286.73899009,0.00018705,2]
[312159590,1705674099927,-10558.51539518,0.00018705,2]
[312159591,1705674099952,-203.33758657,0.00018705,2]
[312159592,1705674099978,-218.02447826,0.00018705,2]
[312159593,1705674100003,-4248.08380975,0.00018706,2]
[312159594,1705674100027,-916.9986695,0.00018706,2]
[312159595,1705674100052,-651.76209495,0.00018706,2]
[312159596,1705674100077,-2320.37031059,0.00018706,2]
[312159597,1705674100102,-9885.66718753,0.00018707,2]
[312159598,1705674196540,151.0,0.00029614,120]
[312159611,1705674425237,151.0,0.00029759,120]
[312159617,1705674516063,478.41,0.00017405,2]
[312159651,1705674632277,-258.75,0.00018655,2]
[312159657,1705674632336,-270.7025859,0.00018655,2]
[312159659,1705674632346,-295.57218502,0.00018655,2]
[312159660,1705674632356,-253.02827447,0.00018656,2]
[312159662,1705674632366,-155.0,0.00018657,2]
[312159663,1705674632376,-3045.18818875,0.00018657,2]
[312159665,1705674632386,-523.92202884,0.00018658,2]
[312159667,1705674632395,-150.0,0.00018658,2]
[312159668,1705674632405,-3626.06527258,0.00018658,2]
[312159669,1705674632414,-419.65429874,0.00018659,2]
[312159671,1705674632424,-364.16757287,0.00018659,2]
[312159672,1705674632434,-10558.51539518,0.00018659,2]
[312159674,1705674632443,-155.0,0.00018659,2]
[312159675,1705674632454,-310.26117175,0.00018659,2]
[312159676,1705674632464,-4273.6526089,0.00018659,2]
[312159677,1705674632474,-211.75204362,0.0001866,2]
[312159678,1705674632484,-2902.60645691,0.0001866,2]
[312159679,1705674632494,-164.0104164,0.00018663,2]
[312159680,1705674632507,-213260.64371017,0.00018663,2]
[312159681,1705674632533,-9421.42134927,0.00018663,2]
[312159682,1705674632546,-837740.43178969,0.00018663,2]
[312159683,1705674632556,-33765.45615338,0.00018665,2]
[312159684,1705674632566,-563.0,0.00018669,2]
[312159685,1705674632577,-3857.0754299,0.00018696,2]
[312159686,1705674632588,-4077.69,0.00018696,2]
[312159687,1705674632598,-865.83,0.00018696,2]
[312159688,1705674632608,-499.99,0.00018696,2]
[312159689,1705674632618,-999.99,0.00018705,2]
[312159690,1705674632627,-1346.15,0.00018713,2]
[312159691,1705674632637,-150.99,0.00018713,2]
[312159692,1705674632649,-2974.57,0.00018723,2]
[312159693,1705674632659,-915.98,0.00018728,2]
[312159694,1705674632669,-299.19132072,0.00018736,2]
[312159695,1705674632679,-546.04,0.00018847,2]
[312159696,1705674632690,-299.19132054,0.00018927,2]
[312159697,1705674632700,-330.83,0.00019091,2]
[312159698,1705674632710,-596.79,0.000191,2]
[312159699,1705674632720,-299.19132054,0.00019118,2]
[312159700,1705674632731,-600.0,0.00019129,2]
[312159701,1705674632741,-154.73,0.00019143,10]
[312159702,1705674632750,-3677.99176611,0.000192,2]
[312159703,1705674632761,-250.0,0.00019257,2]
[312159704,1705674632770,-1033.96,0.00019257,2]
[312159705,1705674632780,-23900.0,0.00019265,2]
[312159706,1705674632790,-173.84,0.00019286,2]
[312159707,1705674632800,-299.19132054,0.00019309,2]
[312159708,1705674632810,-208.99,0.00019344,2]
[312159709,1705674632820,-160.66,0.0001937,2]
[312159710,1705674632830,-157.24,0.0001939,2]
[312159711,1705674632841,-1362.48,0.00019407,2]
[312159712,1705674632851,-373.80187657,0.00019415,2]
[312159713,1705674632860,-600.0,0.00019433,2]
[312159714,1705674632870,-500.0,0.00019444,2]
[312159715,1705674632880,-200.0,0.00019459,2]
[312159716,1705674632889,-401.32,0.0001946,2]
[312159717,1705674632899,-855.49,0.00019467,2]
[312159718,1705674632909,-299.19132054,0.000195,2]
[312159719,1705674632919,-189.5,0.00019525,2]
[312159720,1705674632928,-200.0,0.00019582,2]
[312159721,1705674632938,-200.0,0.0001962,2]
[312159722,1705674632949,-157.24,0.00019643,2]
[312159723,1705674632958,-478.41,0.00019669,2]
[312159724,1705674632968,-299.19132054,0.00019691,2]
[312159725,1705674632977,-156.57,0.00019753,2]
[312159726,1705674632987,-154.73,0.00019769,10]
[312159727,1705674632996,-299.19132054,0.00019882,2]
[312159728,1705674633006,-157.24,0.00019895,2]
[312159729,1705674633015,-157.38,0.0001991,2]
[312159730,1705674633025,-150.0,0.00019984,2]
[312159731,1705674633033,-1098.64522824,0.0002,2]
[312159732,1705674633042,-1551.36,0.00020009,2]
[312159733,1705674633050,-181.08,0.00020062,2]
[312159734,1705674633060,-755.8,0.00020068,2]
[312159735,1705674633069,-170.13,0.00020072,2]
[312159736,1705674633079,-299.19132054,0.00020073,2]
[312159737,1705674633088,-400.0,0.00020087,2]
[312159738,1705674633098,-157.24,0.00020148,2]
[312159739,1705674633107,-755.8,0.00020195,2]
[312159740,1705674633117,-299.19132054,0.00020264,2]
[312159741,1705674633127,-150.0,0.00020271,2]
[312159742,1705674633137,-150.0,0.00020305,2]
[312159743,1705674633146,-755.8,0.00020322,2]
[312159744,1705674633156,-156.57,0.00020346,2]
[312159745,1705674633165,-150.0,0.00020366,2]
[312159746,1705674633174,-154.73,0.00020394,10]
[312159747,1705674633184,-157.24,0.00020401,2]
[312159748,1705674633194,-1000.0,0.00020416,2]
[312159749,1705674633204,-1375.65649134,0.00020448,3]
[312159750,1705674633213,-755.8,0.00020448,2]
[312159751,1705674633223,-299.19132054,0.00020455,2]
[312159752,1705674633232,-157.44,0.00020464,2]
[312159753,1705674633242,-210.0,0.00020524,2]
[312159754,1705674633252,-2000.0,0.00020548,2]
[312159755,1705674633262,-755.8,0.00020575,2]
[312159756,1705674633271,-150.0,0.0002061,2]
[312159757,1705674633281,-299.19132054,0.00020645,2]
[312159758,1705674633291,-157.44,0.00020667,2]
[312159759,1705674633300,-150.0,0.00020694,2]
[312159760,1705674633310,-755.8,0.00020702,2]
[312159761,1705674633320,-159.28,0.00020707,2]
[312159762,1705674633330,-207.0,0.00020721,2]
[312159763,1705674633340,-495.94499985,0.00020724,2]
[312159764,1705674633349,-755.8,0.00020828,2]
[312159765,1705674633358,-299.19132054,0.00020836,2]
[312159766,1705674633368,-157.44,0.00020869,2]
[312159767,1705674633377,-150.85586616,0.000209,2]
[312159768,1705674633387,-156.57,0.00020938,2]
[312159769,1705674633396,-3603.08,0.00020951,2]
[312159770,1705674633406,-11986.06734946,0.00020951,2]
[312159771,1705674633420,-16644.67265054,0.00020951,2]
[312159772,1705674633429,-755.8,0.00020955,2]
[312159773,1705674633439,-1551.36,0.00020987,2]
[312159774,1705674633449,-256.96,0.00021,2]
[312159775,1705674633459,-154.73,0.00021019,10]
[312159776,1705674633469,-299.19132054,0.00021027,2]
[312159777,1705674633479,-157.44,0.00021072,2]
[312159778,1705674633488,-755.8,0.00021082,2]
[312159779,1705674633499,-280.24500662,0.00021137,2]
[312159780,1705674633508,-168.98299725,0.00021156,2]
[312159781,1705674633518,-5054.5493648,0.00021156,2]
[312159782,1705674633528,-6358.400639,0.00021157,2]
[312159783,1705674633537,-1658.04034707,0.00021158,2]
[312159784,1705674633560,-1386.38282133,0.00021161,2]
[312159785,1705674633570,-755.8,0.00021209,2]
[312159786,1705674633581,-299.19132054,0.00021218,2]
[312159787,1705674633591,-157.44,0.00021274,2]
[312159788,1705674633601,-755.8,0.00021335,2]
[312159789,1705674633611,-154.85,0.00021367,2]
[312159790,1705674633622,-150.0,0.00021379,2]
[312159791,1705674633632,-299.19132054,0.00021409,2]
[312159792,1705674633643,-1000.0,0.0002144,2]
[312159793,1705674633655,-755.8,0.00021462,2]
[312159794,1705674633665,-230.08829952,0.00021464,2]
[312159795,1705674633676,-2926.4377404,0.00021464,3]
[312159796,1705674633687,-250.0,0.00021465,2]
[312159797,1705674633696,-150.56489272,0.00021465,2]
[312159798,1705674633709,-157.44,0.00021477,2]
[312159799,1705674633719,-150.0,0.000215,2]
[312159800,1705674633730,-156.57,0.00021531,2]
[312159801,1705674633741,-755.8,0.00021589,2]
[312159802,1705674633751,-281.17948363,0.00021597,2]
[312159803,1705674633761,-2500.0,0.000216,2]
[312159804,1705674633771,-299.19132054,0.000216,2]
[312159805,1705674633781,-415.8653,0.00021639,2]
[312159806,1705674633791,-1356.59,0.00021644,2]
[312159807,1705674633801,-157.44,0.0002168,2]
[312159808,1705674633810,-351.25593204,0.00021706,2]
[312159809,1705674633821,-249.49289135,0.00021715,2]
[312159810,1705674633831,-755.8,0.00021716,2]
[312159811,1705674633841,-5000.0,0.00021716,2]
[312159812,1705674633850,-368.19166572,0.00021739,2]
[312159813,1705674633860,-150.0,0.00021772,2]
[312159814,1705674633870,-408.64,0.00021778,2]
[312159815,1705674633879,-294.39,0.00021778,2]
[312159816,1705674633891,-157.38,0.00021783,2]
[312159817,1705674634334,-299.19132054,0.00021791,2]
[312159818,1705674634345,-1500.0,0.00021799,2]
[312159819,1705674634355,-1274.67845149,0.000218,2]
[312159820,1705674634366,-11120.59391113,0.00021806,2]
[312159821,1705674634377,-471.24868728,0.00021814,2]
[312159822,1705674634386,-511.96872528,0.00021814,2]
[312159823,1705674634397,-348.55935154,0.00021814,2]
[312159824,1705674634407,-248.15907292,0.00021815,2]
[312159825,1705674634416,-227.55536979,0.00021815,2]
[312159826,1705674634431,-308.66059738,0.00021815,2]
[312159827,1705674634442,-167.08344621,0.00021815,2]
[312159828,1705674634455,-386.58368493,0.00021815,2]
[312159829,1705674634465,-219.93074894,0.00021815,2]
[312159830,1705674634477,-255.81339565,0.00021815,2]
[312159831,1705674634488,-368.57931405,0.00021815,2]
[312159832,1705674634499,-157.15988176,0.00021815,2]
[312159833,1705674634510,-155.64754638,0.00021815,2]
[312159834,1705674634520,-1228.167174,0.00021815,2]
[312159835,1705674634531,-1706.06075279,0.00021815,2]
[312159836,1705674634542,-2101.92589064,0.00021815,2]
[312159837,1705674634553,-952.32604569,0.00021815,2]
[312159838,1705674634577,-267.3,0.00021815,2]
[312159839,1705674634600,-642.5144948,0.00021815,2]
[312159840,1705674634613,-1550.3468,0.00021815,2]
[312159841,1705674634649,-1209.9737523,0.00021815,2]
[312159842,1705674634659,-837.63521561,0.00021815,2]
[312159843,1705674637715,-1488.15,0.00018565,2]
[312159859,1705674638784,-18.08424438,0.00018565,2]
[312159861,1705674638797,-1010.49122007,0.00018565,2]
[312159863,1705674638807,-226.69261519,0.00018653,2]
[312159865,1705674638817,-1599.2619699,0.00021815,2]
[312159867,1705674638827,-204.10119886,0.00021815,2]
[312159869,1705674638837,-501.02351952,0.00021815,2]
[312159871,1705674638848,-2246.77852355,0.00021815,2]
[312159873,1705674638858,-155.0,0.00021815,2]
[312159876,1705674638868,-366.74622265,0.00021815,2]
[312159879,1705674638877,-155.38567074,0.00021815,2]
[312159882,1705674638887,-288.7216786,0.00021815,2]
[312159884,1705674638898,-940.1645886,0.00021815,2]
[312159886,1705674638909,-301.25336037,0.00021815,2]
[312159888,1705674638918,-600.001725,0.00021815,2]
[312159890,1705674638928,-1005.59036278,0.00021815,2]
[312159892,1705674638939,-2453.56449054,0.00021815,2]
[312159894,1705674638949,-2143.67843244,0.00021815,2]
[312159896,1705674638960,-210.310707,0.00021815,2]
[312159898,1705674638970,-217.76371844,0.00021815,2]
[312159900,1705674638981,-2137.45989746,0.00021815,2]
[312159902,1705674638990,-314.06552094,0.00021815,2]
[312159904,1705674639000,-930.77941598,0.00021815,2]
[312159906,1705674639010,-1041.39124491,0.00021815,2]
[312159910,1705674639038,-97.58722466,0.00021815,2]
[312159912,1705674639048,-468.0796985,0.00021815,2]
[312159915,1705674639076,-45.16084019,0.00021815,2]
[312159918,1705674639086,-156.34928234,0.00021815,2]
[312159920,1705674639097,-263.27773987,0.00021815,2]
[312159921,1705674639106,-200.0,0.00021815,2]
[312159925,1705674639127,-179.0,0.00021815,2]
[312159927,1705674639137,-1332.42027005,0.00021816,2]
[312159929,1705674639147,-200.66628709,0.00021816,2]
[312159931,1705674639157,-1262.39631924,0.00021816,2]
[312159933,1705674639167,-164.06048249,0.00021816,2]
[312159935,1705674639177,-500.0,0.00021816,2]
[312159937,1705674639187,-750.0,0.00021817,2]
[312159939,1705674639197,-1128.86877874,0.00021817,2]
[312159942,1705674639223,-689.04830542,0.00021817,2]
[312159949,1705674639286,-53737.08291584,0.00021817,2]
[312159951,1705674639295,-357.31975462,0.00021817,2]
[312159992,1705674639679,-198.58536634,0.00021817,2]
[312159995,1705674639711,-184.67736102,0.00021817,2]
[312159997,1705674639723,-755.8,0.00021842,2]
[312159999,1705674639733,-600.0,0.00021862,2]
[312160001,1705674639743,-157.44,0.00021882,2]
[312160003,1705674639753,-250.0,0.000219,2]
[312160005,1705674639763,-4223.56494343,0.000219,2]
[312160007,1705674639774,-4223.5649433,0.000219,2]
[312160009,1705674639783,-4223.5649433,0.000219,2]
[312160011,1705674639794,-4223.5649433,0.000219,2]
[312160013,1705674639803,-4223.5649433,0.000219,2]
[312160015,1705674639814,-4223.5649433,0.000219,2]
[312160017,1705674639823,-4223.5649433,0.000219,2]
[312160018,1705674639833,-4223.5649433,0.000219,2]
[312160019,1705674639842,-4223.5649433,0.000219,2]
[312160020,1705674639851,-4223.5649433,0.000219,2]
[312160021,1705674639861,-4223.5649433,0.000219,2]
[312160022,1705674639870,-4223.5649433,0.000219,2]
[312160023,1705674639879,-4223.5649433,0.000219,2]
[312160024,1705674639889,-150.0,0.000219,2]
[312160025,1705674639900,-226.69261519,0.00021907,2]
[312160026,1705674639909,-1573.73076164,0.00021913,2]
[312160028,1705674639918,-1206.27377609,0.00021914,2]
[312160030,1705674639928,-215.39954746,0.00021915,2]
[312160032,1705674639938,-6437.51501996,0.00021915,2]
[312160034,1705674639948,-233.50940644,0.00021915,2]
[312160036,1705674639959,-177.82092224,0.00021915,2]
[312160038,1705674639969,-2916.89243027,0.00021915,2]
[312160040,1705674639979,-218.91907879,0.00021915,2]
[312160042,1705674639989,-156.29412186,0.00021915,2]
[312160044,1705674640004,-208.49754271,0.00021915,2]
[312160046,1705674640014,-564.44970192,0.00021915,2]
[312160048,1705674640025,-287.2230766,0.00021915,2]
[312160051,1705674640035,-262.5953698,0.00021915,2]
[312160053,1705674640046,-195.20540532,0.00021915,2]
[312160054,1705674640056,-417.52146026,0.00021915,2]
[312160057,1705674640066,-204.25460702,0.00021915,2]
[312160059,1705674640078,-164.2384182,0.00021915,2]
[312160061,1705674640088,-235.65900379,0.00021915,2]
[312160063,1705674640098,-42997.05845496,0.00021915,2]
[312160065,1705674640108,-157.9801797,0.00021915,2]
[312160068,1705674640119,-246.55348997,0.00021915,2]
[312160070,1705674640129,-155.48396173,0.00021915,2]
[312160072,1705674640139,-175.14957679,0.00021915,2]
[312160074,1705674640149,-155.8409457,0.00021915,2]
[312160075,1705674640158,-155.0,0.00021915,2]
[312160078,1705674640169,-400.34058814,0.00021915,2]
[312160080,1705674640181,-522.85587045,0.00021915,2]
[312160082,1705674640191,-155.0,0.00021915,2]
[312160084,1705674640201,-376.165677,0.00021915,2]
[312160086,1705674640212,-342.92124732,0.00021915,2]
[312160088,1705674640222,-640.3877892,0.00021915,2]
[312160090,1705674640233,-2024.73286782,0.00021915,2]
[312160092,1705674640242,-160.6463697,0.00021915,2]
[312160094,1705674640253,-156.77132149,0.00021915,2]
[312160096,1705674640262,-523.75608307,0.00021915,2]
[312160098,1705674640273,-1817.82037099,0.00021915,2]
[312160100,1705674640284,-155.92659979,0.00021915,2]
[312160102,1705674640293,-300.19258432,0.00021915,2]
[312160104,1705674640303,-1225.18380487,0.00021915,2]
[312160106,1705674640313,-382.5072126,0.00021915,2]
[312160108,1705674640322,-251.70188647,0.00021915,2]
[312160110,1705674640333,-886.79371314,0.00021915,2]
[312160112,1705674640347,-567.04871616,0.00021915,2]
[312160115,1705674640357,-281.56058951,0.00021915,2]
[312160117,1705674640367,-600.19132343,0.00021915,2]
[312160119,1705674640377,-155.31278064,0.00021915,2]
[312160120,1705674640387,-155.4249365,0.00021915,2]
[312160123,1705674640398,-160.94291649,0.00021915,2]
[312160125,1705674640409,-363.56577485,0.00021915,2]
[312160127,1705674640419,-1042.99625133,0.00021915,2]
[312160129,1705674640429,-151.0,0.00021917,2]
[312160132,1705674640453,-151.0,0.00021917,2]
[312160134,1705674640464,-151.0,0.00021917,2]
[312160135,1705674640474,-285.408225,0.00021917,2]
[312160137,1705674640483,-500.0,0.00021917,2]
[312160139,1705674640493,-500.0,0.00021917,2]
[312160141,1705674640503,-500.0,0.00021917,2]
[312160143,1705674640513,-500.0,0.00021917,2]
[312160145,1705674640523,-500.0,0.00021917,2]
[312160147,1705674640533,-500.0,0.00021917,2]
[312160150,1705674640544,-707.27,0.00021917,2]
[312160152,1705674640554,-500.0,0.00021917,2]
[312160153,1705674640563,-500.0,0.00021917,2]
[312160156,1705674640574,-500.0,0.00021917,2]
[312160158,1705674640586,-902.43,0.00021917,2]
[312160160,1705674640596,-500.0,0.00021917,2]
[312160161,1705674640606,-500.0,0.00021917,2]
[312160164,1705674640617,-500.0,0.00021917,2]
[312160166,1705674640627,-512.07,0.00021917,2]
[312160168,1705674640641,-543.02,0.00021917,2]
[312160170,1705674640651,-785.51,0.00021917,2]
[312160172,1705674640661,-500.0,0.00021917,2]
[312160174,1705674640671,-500.0,0.00021917,2]
[312160176,1705674640681,-500.0,0.00021917,2]
[312160179,1705674640691,-500.0,0.00021917,2]
[312160182,1705674640701,-500.0,0.00021917,2]
[312160185,1705674640712,-500.0,0.00021917,2]
[312160188,1705674640722,-500.0,0.00021917,2]
[312160191,1705674640733,-500.0,0.00021917,2]
[312160194,1705674640743,-500.0,0.00021917,2]
[312160197,1705674640754,-500.0,0.00021917,2]
[312160200,1705674640764,-608.81893856,0.00021917,2]
[312160203,1705674640774,-500.0,0.00021917,2]
[312160206,1705674640784,-500.0,0.00021917,2]
[312160209,1705674640794,-500.0,0.00021917,2]
[312160212,1705674640805,-521.03,0.00021917,2]
[312160215,1705674640815,-500.0,0.00021917,2]
[312160218,1705674640825,-500.0,0.00021917,2]
[312160221,1705674640834,-500.0,0.00021917,2]
[312160224,1705674640845,-500.0,0.00021917,2]
[312160227,1705674640855,-500.0,0.00021917,2]
[312160230,1705674640865,-571.67,0.00021917,2]
[312160232,1705674640875,-500.0,0.00021917,2]
[312160235,1705674640885,-500.0,0.00021917,2]
[312160238,1705674640896,-500.0,0.00021917,2]
[312160241,1705674640907,-500.0,0.00021917,2]
[312160243,1705674640917,-500.0,0.00021917,2]
[312160246,1705674640927,-500.0,0.00021917,2]
[312160249,1705674640938,-500.0,0.00021917,2]
[312160252,1705674640948,-500.0,0.00021917,2]
[312160255,1705674640958,-500.0,0.00021917,2]
[312160257,1705674640968,-528.35,0.00021917,2]
[312160260,1705674640978,-500.0,0.00021917,2]
[312160263,1705674640988,-500.0,0.00021917,2]
[312160265,1705674640998,-500.0,0.00021917,2]
[312160266,1705674641009,-500.0,0.00021917,2]
[312160268,1705674641019,-1000.0,0.00021917,10]
[312160271,1705674641029,-500.0,0.00021917,2]
[312160274,1705674641039,-500.0,0.00021917,2]
[312160276,1705674641049,-500.0,0.00021917,2]
[312160279,1705674641059,-500.0,0.00021917,2]
[312160282,1705674641070,-500.0,0.00021917,2]
[312160285,1705674641080,-500.0,0.00021917,2]
[312160288,1705674641090,-500.0,0.00021917,2]
[312160291,1705674641100,-500.0,0.00021917,2]
[312160293,1705674641110,-500.0,0.00021917,2]
[312160296,1705674641120,-500.0,0.00021917,2]
[312160299,1705674641130,-500.0,0.00021917,2]
[312160302,1705674641141,-500.0,0.00021917,2]
[312160305,1705674641150,-803.94,0.00021917,2]
[312160308,1705674641160,-500.0,0.00021917,2]
[312160310,1705674641171,-500.0,0.00021917,2]
[312160315,1705674641191,-500.0,0.00021917,2]
[312160318,1705674641204,-500.0,0.00021917,2]
[312160321,1705674641216,-500.0,0.00021917,2]
[312160324,1705674641226,-852.68,0.00021917,2]
[312160327,1705674641237,-500.0,0.00021917,2]
[312160331,1705674641247,-500.0,0.00021917,2]
[312160333,1705674641257,-500.0,0.00021917,2]
[312160336,1705674641268,-500.0,0.00021917,2]
[312160339,1705674641279,-396.48657349,0.00021917,2]
[312160342,1705674641289,-500.0,0.00021917,2]
[312160345,1705674641300,-500.0,0.00021917,2]
[312160348,1705674641310,-500.0,0.00021917,2]
[312160351,1705674641321,-518.01753093,0.00021917,2]
[312160353,1705674641332,-500.0,0.00021917,2]
[312160356,1705674641343,-559.02831528,0.00021917,2]
[312160359,1705674641354,-500.0,0.00021917,2]
[312160362,1705674641364,-500.0,0.00021917,2]
[312160365,1705674641375,-500.0,0.00021917,2]
[312160368,1705674641385,-500.0,0.00021917,2]
[312160372,1705674641396,-500.0,0.00021917,2]
[312160375,1705674641407,-506.14,0.00021917,2]
[312160378,1705674641418,-1006.1,0.00021917,2]
[312160381,1705674641429,-500.0,0.00021917,2]
[312160383,1705674641439,-500.0,0.00021917,2]
[312160386,1705674641448,-500.0,0.00021917,2]
[312160389,1705674641460,-556.1,0.00021917,2]
[312160392,1705674641470,-500.0,0.00021917,2]
[312160395,1705674641480,-500.0,0.00021917,2]
[312160398,1705674641490,-500.0,0.00021917,2]
[312160401,1705674641502,-500.0,0.00021917,2]
[312160404,1705674641512,-500.0,0.00021917,2]
[312160407,1705674641522,-500.0,0.00021917,2]
[312160410,1705674641532,-500.0,0.00021917,2]
[312160414,1705674641542,-500.0,0.00021917,2]
[312160415,1705674641554,-500.0,0.00021917,2]
[312160418,1705674641564,-500.0,0.00021917,2]
[312160423,1705674641576,-550.99,0.00021917,2]
[312160426,1705674641587,-500.0,0.00021917,2]
[312160428,1705674641598,-566.41,0.00021917,2]
[312160431,1705674641608,-500.0,0.00021917,2]
[312160434,1705674641620,-500.0,0.00021917,2]
[312160437,1705674641633,-500.0,0.00021917,2]
[312160440,1705674641645,-500.0,0.00021917,2]
[312160443,1705674641655,-500.0,0.00021917,2]
[312160446,1705674641665,-500.0,0.00021917,2]
[312160449,1705674641677,-500.0,0.00021917,2]
[312160452,1705674641687,-756.54,0.00021917,2]
[312160455,1705674641697,-666.97,0.00021917,2]
[312160458,1705674641707,-500.0,0.00021917,2]
[312160461,1705674641719,-500.0,0.00021917,2]
[312160464,1705674641731,-500.0,0.00021917,2]
[312160467,1705674641742,-864.28,0.00021917,2]
[312160470,1705674641752,-500.0,0.00021917,2]
[312160473,1705674641762,-733.43,0.00021917,2]
[312160476,1705674641772,-500.0,0.00021917,2]
[312160478,1705674641782,-500.0,0.00021917,2]
[312160481,1705674641792,-500.0,0.00021917,2]
[312160484,1705674641803,-894.89,0.00021917,2]
[312160487,1705674641813,-640.01,0.00021917,2]
[312160491,1705674641823,-500.0,0.00021917,2]
[312160494,1705674641834,-500.0,0.00021917,2]
[312160497,1705674641843,-803.93,0.00021917,2]
[312160499,1705674641854,-1124.29,0.00021917,2]
[312160500,1705674641864,-500.0,0.00021917,2]
[312160502,1705674641874,-500.0,0.00021917,2]
[312160504,1705674641885,-500.0,0.00021917,2]
[312160507,1705674641895,-500.0,0.00021917,2]
[312160511,1705674641907,-500.0,0.00021917,2]
[312160514,1705674641918,-500.0,0.00021917,2]
[312160517,1705674641929,-500.0,0.00021917,2]
[312160520,1705674641939,-555.71,0.00021917,2]
[312160523,1705674641949,-500.0,0.00021917,2]
[312160525,1705674641960,-557.11,0.00021917,2]
[312160527,1705674641969,-197.89,0.00021917,2]
[312160529,1705674641979,-562.92,0.00021917,2]
[312160531,1705674641989,-500.0,0.00021917,2]
[312160533,1705674641999,-518.9,0.00021917,2]
[312160535,1705674642013,-1239.37,0.00021917,2]
[312160536,1705674642023,-500.0,0.00021917,2]
[312160537,1705674642032,-500.0,0.00021917,2]
[312160539,1705674642042,-500.0,0.00021917,2]
[312160540,1705674642052,-500.0,0.00021917,2]
[312160541,1705674642063,-500.0,0.00021917,2]
[312160542,1705674642073,-500.0,0.00021917,2]
[312160544,1705674642083,-500.0,0.00021917,2]
[312160546,1705674642093,-500.0,0.00021917,2]
[312160548,1705674642103,-500.0,0.00021917,2]